Cogmind - Beta 14 *** ADVENTURER MODE // 2025.03.28 @ 12:21:49 Player: h0rm1g4 Result: Self-destructed Performance ------------- Evolutions (4) 2000 Regions Visited (5) 1000 Robots Destroyed (113) 565 Value Destroyed (4469) 4469 Prototype IDs (1) 20 Alien Tech Used (0) 0 Bonus (504) 504 TOTAL SCORE: 8558 Bonus ------- High Alert Combat Kills 504 Cogmind --------- Core Integrity 423/850 Matter 550/550 Energy 450/450 System Corruption 0% Temperature Cool (0) Movement Treading (163) Location -6/Factory Parts ------- > --- POWER (2) -------- (None) > --- PROPULSION (3) --- Armored Treads Improved Medium Treads Improved Medium Treads > --- UTILITY (8) ------ Advanced Heat Sink Medium Storage Unit Energy Well Matter Compressor Advanced Targeting Computer Hacking Suite > --- WEAPON (2) ------- (None) > --- INVENTORY (10) --- Light Nuclear Core Gravmag System Energy Well (350) ECM Suite Remote Datajack Peak State ------------ > --- POWER ------------ Light Angular Momentum Engine Light Fission Core > --- PROPULSION ------- Improved Gravmag System Improved Gravmag System Improved Gravmag System > --- UTILITY ---------- Medium Storage Unit Compact Battery Matter Compressor Seismic Detector Advanced Targeting Computer Improved Shield Generator Hacking Suite System Restoration Module > --- WEAPON ----------- Gatling Laser Gauss Rifle > --- INVENTORY -------- Improved Deuterium Engine Armored Treads Improved Medium Treads Gravmag System Improved Gravmag System Advanced Heat Sink Transport Network Coupler Lightning Gun Proton Cannon Remote Datajack [Rating: 61] Favorites ----------- Power Light Deuterium Engine Engine Light Deuterium Engine Power Core Light Nuclear Core Propulsion Improved Gravmag System Treads Light Treads Leg Aluminum Leg Wheel Wheel Hover Unit Improved Gravmag System Utility Advanced Targeting Computer Device Shield Generator Storage Medium Storage Unit Processor Advanced Targeting Computer Hackware Hacking Suite Weapon Advanced Assault Cannon Energy Gun Gatling Laser Energy Cannon Proton Cannon Ballistic Gun Minigun Ballistic Cannon Advanced Assault Cannon Launcher Advanced EMP Blaster Special Weapon Remote Datajack Impact Weapon Powered Hammer Build | -11 -10 -9 -8 -7 -6 ------- Run | Yrd Mat Mat Mat Fac Fac Slots Evolved 8 | . . 2 2 2 2 Power 1 | . . . 1 . . Propulsion 1 | . . . . 1 . Utility 6 | . . 2 1 1 2 Weapon . | . . . . . . Parts Attached 97 | 6 2 6 16 31 36 Power 22 | 1 . 1 4 8 8 Engine 13 | 1 . 1 4 2 5 Core 9 | . . . . 6 3 Reactor . | . . . . . . Propulsion 28 | 2 . 1 3 11 11 Treads 6 | . . . . 3 3 Leg 4 | . . . 2 2 . Wheel 7 | 2 . 1 1 3 . Hover 11 | . . . . 3 8 Flight . | . . . . . . Utility 24 | 1 2 2 5 5 9 Device 12 | . 1 . 2 3 6 Storage 7 | 1 1 1 1 . 3 Processor 4 | . . 1 2 1 . Hackware 1 | . . . . 1 . Protection . | . . . . . . Artifact . | . . . . . . Weapon 23 | 2 . 2 4 7 8 Energy Gun 5 | 2 . . . . 3 Energy Cannon 4 | . . 1 1 1 1 Ballistic Gun 5 | . . . . 2 3 Ballistic Cannon 3 | . . . 1 1 1 Launcher 3 | . . 1 2 . . Special Weapon 1 | . . . . 1 . Impact Weapon 2 | . . . . 2 . Slashing Weapon . | . . . . . . Piercing Weapon . | . . . . . . Special Melee Weapon . | . . . . . . Unidentified Prototypes 1 | . . . 1 . . Corrupted Parts 1 | . . . . 1 . System Corruption 9 | . . . . 9 . Parts Lost 41 | . . 2 1 19 19 Power 11 | . . . . 6 5 Propulsion 10 | . . . 1 5 4 Utility 13 | . . 2 . 5 6 Weapon 7 | . . . . 3 4 Highest Loss Streak 11 | . . 2 1 7 11 To Critical Strikes 1 | . . . . . 1 Average Slot Usage (%) 84 | . 97 87 91 74 87 Engine 8 | . 14 11 18 4 5 Core 4 | . . . . 8 4 Treads 3 | . . . . 6 4 Leg 2 | . . . 1 7 . Wheel 6 | . 28 13 11 3 . Hover 4 | . . . . 1 14 Device 12 | . 7 10 16 8 14 Storage 12 | . 18 19 9 7 16 Processor 8 | . . 10 17 7 6 Hackware 3 | . . . . 3 6 Energy Gun 4 | . 28 16 . . 4 Energy Cannon 1 | . . 3 . . 1 Ballistic Gun 2 | . . . . 4 3 Ballistic Cannon 4 | . . . 8 5 1 Launcher 2 | . . 1 8 . . Peak Build Rating 61 | 6 7 11 27 36 61 Average Rating 30 | 3 6 9 24 26 49 On Entrance 14 | . 6 7 9 26 36 Naked Turns . | . . . . . . Heaviest Build 46 | 13 14 18 40 40 46 Greatest Support 80 | 16 16 16 20 68 80 Greatest Overweight (x) 8 | . . 1 2 8 2 Average Overweight (x) . | . . . 1 . . Largest Inventory Capacity 10 | 8 8 8 10 10 10 Average Capacity 9 | 7 8 8 8 10 10 Most Carried 10 | 5 6 8 8 10 10 Average Carried 6 | 3 4 5 7 6 7 Final Capacity 10 | 8 8 8 10 10 10 Final Carried 9 | 3 6 7 6 9 5 Class Distribution -------------------- 49% | Hacker-Mutant 47% | Mutant Dominant Class ---------------- Mutant | -10/Materials Mutant | -9/Materials Mutant | -8/Materials Hacker-Mutant | -7/Factory Hacker-Mutant | -6/Factory Resources | -11 -10 -9 -8 -7 -6 ----------- Run | Yrd Mat Mat Mat Fac Fac Matter Collected 3305 | 239 31 70 736 1123 1106 Remotely . | . . . . . . Salvage Created 4323 | . 130 287 1195 1688 1023 Parts 205 | . 5 15 69 61 55 Haulers Intercepted 3 | . . . 2 1 . Recyclers Shooed 2 | . . . . . 2 Parts Field Recycled . | . . . . . . Retrieved Matter . | . . . . . . Parts Self-Destructed . | . . . . . . Prevented . | . . . . . . Kills | -11 -10 -9 -8 -7 -6 ------- Run | Yrd Mat Mat Mat Fac Fac Combat Hostiles Destroyed 89 | . 2 7 27 35 18 Melee 4 | . . . . 4 . Guns 19 | . 2 3 . 3 11 Cannons 43 | . . 2 12 22 7 AOE 20 | . . 2 14 4 . Classes Destroyed 12 | . 2 1 5 3 1 Worker 3 | . . . 2 1 . Tunneler 2 | . . . 2 . . Hauler 3 | . . . 2 1 . Mechanic 1 | . . . . . 1 Operator 3 | . . . . 1 2 Watcher 12 | . 1 . 4 3 4 Swarmer 15 | . . . 3 9 3 Grunt 50 | . 2 3 17 19 9 Duelist 1 | . . . 1 . . Sentry 16 | . . 4 6 3 3 Hunter 4 | . . . . 2 2 Programmer 3 | . . . . 2 1 Best Kill Streak 13 | . 3 2 13 7 5 Combat Bots Only 11 | . 1 2 11 6 5 Max Kills in Single Turn 3 | . 1 2 3 2 2 Gunslinging . | . . . . . . Exploded 2 | . . 2 2 2 . Melee 1 | . . . . 1 . Uniques/NPCs Destroyed . | . . . . . . Combat | -11 -10 -9 -8 -7 -6 -------- Run | Yrd Mat Mat Mat Fac Fac Hostile Shots Fired 889 | . 9 32 55 519 274 Missed 295 | . 3 7 15 191 79 Damage Taken 5772 | . 65 270 342 2659 2436 Core 1213 | . 14 60 24 688 427 Absorbed by Shields 612 | . . . 131 282 199 Ignored by Resistances 1840 | . 19 84 135 908 694 Core Remaining (%) 75 | 100 94 85 95 1 . Volleys Fired 285 | . 9 17 58 109 92 Largest 2 | . 2 2 2 2 2 Hottest 135 | . 90 118 116 116 135 Shots Fired 531 | . 18 34 91 208 180 Gun 257 | . 18 21 . 82 136 Cannon 226 | . . 9 59 114 44 Launcher 48 | . . 4 32 12 . Special . | . . . . . . Kinetic 309 | . . . 58 178 73 Thermal 136 | . 18 30 1 18 69 Explosive 14 | . . 4 10 . . Electromagnetic 72 | . . . 22 12 38 Robot Hit Streak 31 | . 5 31 24 17 19 Robot Miss Streak 4 | . 2 1 2 4 4 Penetration Max 1 | . . . . . 1 Secondary Targets . | . . . . . . Shots Hit Robots 419 | . 11 31 71 170 136 Core Hits 216 | . 6 12 52 67 79 Critical Kills 2 | . . . . 2 . Critical Parts Destroyed 3 | . . . . 2 1 Critical Strikes 16 | . . . 3 11 2 Destroy 1 | . . . . . 1 Blast 11 | . . . 3 7 1 Smash 4 | . . . . 4 . Melee Attacks 11 | . . . . 11 . Impact 11 | . . . . 11 . Slashing . | . . . . . . Piercing . | . . . . . . Sneak Attacks . | . . . . . . Combat Hostiles . | . . . . . . Follow-up Attacks . | . . . . . . Damage Inflicted 11409 | . 136 528 2831 4391 3523 Guns 4205 | . 136 225 . 1144 2700 Cannons 4753 | . . 181 1407 2342 823 Explosions 1994 | . . 122 1424 448 . Melee 457 | . . . . 457 . Ramming . | . . . . . . Kinetic 5817 | . . . 1386 3176 1255 Thermal 2638 | . 136 406 50 366 1680 Explosive 648 | . . 122 526 . . Electromagnetic 1849 | . . . 869 392 588 Impact 457 | . . . . 457 . Slashing . | . . . . . . Piercing . | . . . . . . Highest Corruption 12 | . . . 2 12 . Average Corruption 8 | . . . 1 10 . Corruption Purged . | . . . . . . Corruption Blocked . | . . . . . . Effects 60 | . . . 6 54 . Message Errors 12 | . . . 2 10 . Matter Fused 12 | . . . 2 10 . Heat Flow Errors 5 | . . . . 5 . Energy Discharges 8 | . . . . 8 . Parts Rejected 3 | . . . . 3 . Parts Fused 1 | . . . . 1 . Data Loss (minor) 6 | . . . 1 5 . Data Loss (major) 1 | . . . . 1 . Misfires 5 | . . . 1 4 . Misdirections 2 | . . . . 2 . Weapon Failures 5 | . . . . 5 . Overload Shots . | . . . . . . Overflow Damage 200 | . . 8 8 169 15 Projectiles 77 | . . . 7 55 15 Explosions 9 | . . 8 1 . . Melee 114 | . . . . 114 . Knockbacks 32 | . . . 8 21 3 Impact 1 | . . . . 1 . Kinetic 28 | . . . 8 17 3 Secondary 3 | . . . . 3 . Self-Inflicted Damage 36 | . . 18 14 4 . Shots 3 | . . 1 1 1 . Rammed . | . . . . . . Targets Rammed . | . . . . . . Kicked . | . . . . . . Crushed . | . . . . . . Highest Temperature 573 | . 156 186 181 364 573 Average Temperature 104 | . 67 65 48 86 165 Received Heat Transfer 2242 | . 48 120 219 1128 727 Effects 17 | . . . . . 17 Shutdowns 5 | . . . . . 5 Energy Bleed 3 | . . . . . 3 Interference 2 | . . . . . 2 Matter Decay 1 | . . . . . 1 Short Circuit 1 | . . . . . 1 Damage (minor) 2 | . . . . . 2 Damage (major) 2 | . . . . . 2 Damage (core) 1 | . . . . . 1 Siege Activations . | . . . . . . Robots Corrupted 3 | . . . 1 2 . Combat Hostiles 3 | . . . 1 2 . Parts Fried 6 | . . . . 6 . Impact Corruptions 5 | . . . . 5 . Robots Melted . | . . . . . . Combat Hostiles . | . . . . . . Parts Melted 11 | . 2 4 . . 5 Heat Transferred 5702 | . 347 988 87 605 3675 Parts Sabotaged . | . . . . . . Parts Stolen . | . . . . . . Parts Stripped . | . . . . . . Power Chain Reactions 7 | . . . 5 2 . Alert | -11 -10 -9 -8 -7 -6 ------- Run | Yrd Mat Mat Mat Fac Fac Peak Influence 848 | . 86 324 848 728 356 Initial 262 | . . 30 116 252 262 Average 357 | . 51 124 454 548 231 Maximum Alert Level 3 | . . 1 3 3 1 Low Security (%) 26 | 100 100 84 7 . 34 Level 1 37 | . . 15 54 13 65 Level 2 31 | . . . 22 81 . Level 3 4 | . . . 15 4 . Level 4 . | . . . . . . Level 5 . | . . . . . . High Security . | . . . . . . Max Security . | . . . . . . Squads Dispatched 24 | . . 1 7 11 5 Investigation 5 | . . . 3 . 2 Extermination 4 | . . . . 2 2 Reinforcement 8 | . . 1 1 5 1 Assault 1 | . . . . 1 . Garrison 6 | . . . 3 3 . Intercept . | . . . . . . Searches Triggered . | . . . . . . Construction Impeded 2 | . . . 1 1 . Haulers Reinforced 1 | . . . . 1 . Active Scanning Responses . | . . . . . . Cargo Convoy Interrupts 1 | . . . . . 1 Stealth | -11 -10 -9 -8 -7 -6 --------- Run | Yrd Mat Mat Mat Fac Fac Distress Signals 8 | . 1 . 2 3 2 Communications Jammed . | . . . . . . Distress Signals . | . . . . . . Times Spotted 143 | . 3 7 35 55 43 Peak Tracking Total 8 | . 3 2 5 8 6 Tactical Retreats 15 | . . . 3 6 6 Traps | -11 -10 -9 -8 -7 -6 ------- Run | Yrd Mat Mat Mat Fac Fac Traps Triggered 6 | . . . 3 1 2 Indirectly 1 | . . . . 1 . Trap Hack Attempts . | . . . . . . Triggered . | . . . . . . Disarmed . | . . . . . . Reprogrammed . | . . . . . . Reused . | . . . . . . Traps Extracted . | . . . . . . Installed . | . . . . . . Triggered . | . . . . . . Machines | -11 -10 -9 -8 -7 -6 ---------- Run | Yrd Mat Mat Mat Fac Fac Machines Disabled 15 | . . 2 2 9 2 Max in Single Turn 3 | . . 2 1 3 1 Machines Repaired . | . . . . . . Machines Dismantled . | . . . . . . Machines Sabotaged . | . . . . . . Overloaded Fab Kills . | . . . . . . Hacking | -11 -10 -9 -8 -7 -6 --------- Run | Yrd Mat Mat Mat Fac Fac Machines Accessed 11 | . 3 2 4 2 . Terminals 11 | . 3 2 4 2 . Fabricators . | . . . . . . Repair Stations . | . . . . . . Recycling Units . | . . . . . . Scanalyzers . | . . . . . . Garrison Access . | . . . . . . Total Hacks 23 | . 6 6 8 3 . Successful 14 | . 4 3 6 1 . Failed 9 | . 2 3 2 2 . Catastrophic 4 | . 2 2 . . . Database Lockouts . | . . . . . . Manual 14 | . 6 3 3 2 . Terminals 23 | . 6 6 8 3 . Fabricators . | . . . . . . Repair Stations . | . . . . . . Recycling Units . | . . . . . . Scanalyzers . | . . . . . . Garrison Access . | . . . . . . Terminal Hacks 14 | . 4 3 6 1 . Record 9 | . . 3 5 1 . Level Access Points 1 | . 1 . . . . Branch Access Points 2 | . 1 . 1 . . Locate Traps 1 | . 1 . . . . Zone Layout 1 | . 1 . . . . Fabricator Hacks . | . . . . . . Repair Station Hacks . | . . . . . . Recycling Unit Hacks . | . . . . . . Scanalyzer . | . . . . . . Garrison Access Hacks . | . . . . . . Unauthorized Hacks . | . . . . . . Terminals . | . . . . . . Fabricators . | . . . . . . Repair Stations . | . . . . . . Recycling Units . | . . . . . . Scanalyzers . | . . . . . . Garrison Access . | . . . . . . Data Cores Recovered . | . . . . . . Used . | . . . . . . Hacking Detections 7 | . 2 . 4 1 . Full Trace Events 1 | . . . 1 . . Feedback Events . | . . . . . . Feedback Blocked . | . . . . . . Robot Schematics Acquired . | . . . . . . Robots Built . | . . . . . . Authchips . | . . . . . . Time . | . . . . . . Total Robot Build Rating . | . . . . . . Part Schematics Acquired . | . . . . . . Parts Built . | . . . . . . Authchips . | . . . . . . Time . | . . . . . . Total Part Build Rating . | . . . . . . Parts Repaired . | . . . . . . Time . | . . . . . . Parts Recycled . | . . . . . . Recycled Matter . | . . . . . . Retrieved Matter . | . . . . . . Retrieved Components . | . . . . . . Parts Scanalyzed . | . . . . . . Part Schematics Acquired . | . . . . . . Parts Damaged . | . . . . . . Bothacking | -11 -10 -9 -8 -7 -6 ------------ Run | Yrd Mat Mat Mat Fac Fac Used RIF Installer . | . . . . . . Robots Hacked . | . . . . . . Non-combat . | . . . . . . Combat . | . . . . . . Robot Hacks Applied . | . . . . . . Relay Couplers Released . | . . . . . . Fabnet Peak Effective % . | . . . . . . Robots Rewired . | . . . . . . Allies Hacked . | . . . . . . Hacks Repelled . | . . . . . . Allies | -11 -10 -9 -8 -7 -6 -------- Run | Yrd Mat Mat Mat Fac Fac Total Allies . | . . . . . . Largest Group . | . . . . . . Highest-Rated Group . | . . . . . . Highest-Rated Ally . | . . . . . . Total Orders . | . . . . . . Ally Attacks . | . . . . . . Total Damage . | . . . . . . Kills . | . . . . . . Allies Corrupted . | . . . . . . Allies Melted . | . . . . . . Intel | -11 -10 -9 -8 -7 -6 ------- Run | Yrd Mat Mat Mat Fac Fac Robot Analysis Total . | . . . . . . Derelict Logs Recovered . | . . . . . . Drone Launches . | . . . . . . Drone Recoveries . | . . . . . . Exploration | -11 -10 -9 -8 -7 -6 ------------- Run | Yrd Mat Mat Mat Fac Fac Turns Passed 4747 | 47 321 375 959 1547 1498 Spaces Moved 2956 | 37 266 295 607 869 882 Core 11 | 10 . . . 1 . Treads 402 | . . . . 214 188 Legs 301 | . . . 54 247 . Wheels 1402 | 27 266 295 553 261 . Hover 840 | . . . . 146 694 Flight . | . . . . . . Fastest Speed 50 | 50 100 95 105 52 52 Average Speed 117 | 86 100 100 125 124 116 Slowest Speed 450 | 100 100 105 190 450 166 Overloaded Moves . | . . . . . . Propulsion Burnouts . | . . . . . . Robots Hopped . | . . . . . . Cave-ins Triggered . | . . . . . . Exploration Rate (%) 31 | 3 48 35 54 25 22 Regions Visited 5 Branch Regions . Pre-discovered Areas . | . . . . . . Known Exits Taken 1 | . 1 . . . . Unknown Exits Taken 4 | 1 . 1 1 1 . Scrap Searched . | . . . . . . Spaces Dug . | . . . . . . Terrain Destroyed 137 | . . 51 78 6 2 Melee . | . . . . . . Projectile 12 | . . . 5 5 2 AOE 125 | . . 51 73 1 . Terrain Rammed . | . . . . . . Walls Destroyed . | . . . . . . Machines Disabled . | . . . . . . Actions | -11 -10 -9 -8 -7 -6 --------- Run | Yrd Mat Mat Mat Fac Fac Total 3691 | 51 302 340 713 1126 1159 Wait 216 | . 22 14 13 67 100 Move 2951 | 36 265 294 606 868 882 Hop . | . . . . . . Pick Up 87 | 9 4 5 10 29 30 Fast Attach 7 | . . . 2 3 2 Attach 60 | 6 1 3 6 24 20 Detach 4 | . . 1 . 3 . Swap 30 | . 1 3 8 4 14 Drop 40 | . . 3 10 8 19 Fire 285 | . 9 17 58 109 92 Melee 11 | . . . . 11 . Ram . | . . . . . . Kick . | . . . . . . Crush . | . . . . . . Escape Stasis . | . . . . . . Rewire . | . . . . . . Trap . | . . . . . . Miscellaneous . | . . . . . . Route ------- -11/Scrapyard -10/Materials (discovered 5 exits: *Mat x3 / *Min x2) -9/Materials -8/Materials (discovered 2 exits: *Fac / Sto) -7/Factory -6/Factory (discovered 1 exit: [*Low]) History --------- Turn | Location | Event 2 | -11/Scrapyard | Discovered new exit (range 16) 48 | -11/Scrapyard | Entered Materials 66 | -10/Materials | Identified exit to Mines 131 | -10/Materials | Discovered new exit (range 11) 288 | -10/Materials | Discovered new exit (range 15) 317 | -10/Materials | Build established: Mutant 333 | -10/Materials | Identified exit to Materials 369 | -10/Materials | Entered another Materials area 369 | -9/Materials | Evolved 2 slots: Utility x2 729 | -9/Materials | Discovered new exit (range 15) 744 | -9/Materials | Entered another Materials area 744 | -8/Materials | Evolved 2 slots: Power x1, Utility x1 949 | -8/Materials | Identified exit to Storage 1342 | -8/Materials | Garrison activated, responded to threat 1417 | -8/Materials | Destroyed 11 combat bots 1477 | -8/Materials | Discovered new exit (range 12) 1703 | -8/Materials | Entered Factory 1703 | -7/Factory | Evolved 2 slots: Propulsion x1, Utility x1 1896 | -7/Factory | Garrison activated, responded to threat 1956 | -7/Factory | Lost 3 parts (1p1u1w) 2036 | -7/Factory | System corruption reached 10% 2123 | -7/Factory | Lost 5 parts (1p2u2w) 2503 | -7/Factory | First assault squad dispatched 2638 | -7/Factory | Core integrity fell below 50% 2661 | -7/Factory | Lost 3 parts (1p2n) 2700 | -7/Factory | Build established: Hacker-Mutant 3107 | -7/Factory | Core integrity fell below 20% 3156 | -7/Factory | Lost 7 parts (2p3n2u) 3180 | -7/Factory | Discovered new exit (range 11) 3250 | -7/Factory | Entered another Factory area 3250 | -6/Factory | Evolved 2 slots: Utility x2 4380 | -6/Factory | Lost 11 parts (2p4n3u2w) 4506 | -6/Factory | Discovered new exit (range 13) 4739 | -6/Factory | Cargo convoy interrupted 4748 | -6/Factory | Core integrity fell below 50% 4748 | -6/Factory | Self-destructed Last Messages --------------- 04689_ K-01 Serf cleans the Fusion Modulator. 04738_ C-30 ARC bursts open, deploying its payload. 04738_ H-66 Slayer unfolds itself. 04738_ X-62 Marksman unfolds itself. 04738_ M-28 Smith unfolds itself. 04738_ Penetrated by Slug. 04738_ Adv. Assault Cannon destroyed. 04739_ ALERT: Cargo convoy interrupted, initiating access lockdown. 04739_ M-28 Smith repairs H-66 Slayer. 04739_ Slug penetrates Wall. 04741_ Critical hit (Destroy). 04741_ Proton Cannon destroyed. 04741_ Penetrated by Slug. 04747_ M-28 Smith repairs H-66 Slayer. 04747_ Penetrated by Slug. 04747_ Imp. Deuterium Engine destroyed. 04747_ Seismic Detector destroyed. Map ----- +----------------------------------------------------+ | ?????????????????????????????????????????????# | | ?????????????????????????????????????????????+ | | ??????????????????????????????????##########?# # | | ??????????????????????????????????# ### # | | ??????????????????????????????????# """ ## | | ??????????????????????????????????# "R ## | | ?????????????????????????########## """ + T | | ????????????????????????? # ## | | ?????????????????????????""" """ # """ ## | | ?????????????????????????""" """ # """ #### ## | | ?????????????????????# """ """ # """ #??# #? | | ?????????????????????# # #?## ## | | ?????????????????????# """ """ # """ ### # | | ?????????????????????# """ """ # """ + =[ | | ?????????????????????# """ """ # """ ### =# | | ?????????????????????# # #?## ## | | ?????????????????????# # """ #??# #? | | ?????????????????????# # """ #??# #? | | ??????????#########??# # """ #??# #? | | ?????????## i ?#########+#### #??# #? | | ????????? " A####### # #??# #? | | ???????? "mh ####+###### | | ???????? h * [ | | ??????? xh %< k | | ??????? | | ??????? % @ #### | | ??????? ;;;;### " " " %#????#### | | ?????????## # # ??# " " " %#???????? | | ??????????### ??###???# " " "% ######### | | ????????????# ??????????# " " "%%# """ # | | ????????????# ????????????# """ " " " # "T" #? | | ??????????????????????????# "F" " " " # #? | | ??????????????????????????## " " " " # #? | | ???????????????????????????# """ " " " # !! #? | | ???????????????????????????# """ " " " + #? | | ???????????????????????????# ######### | | ???????????????????????????# #?????# | | ???????????????????????#######+####### #?????# | | ???????????????????????# # #?????# | | ???????????????????????# # #?????# | | ???????????????????????# # #?????# | | ???????????????????????# # #?????# | | ???????????????????????# # #?????# | | ???????????????????????# ! # #?????# | | ???????????????????????############### #?????# | | ????????????????????????# ! # #?????# | | ????????????????????????# ! # #?????# | | ????????????????????????# # #?????# | | ????????????????????????# """ # ######### | | ????????????????????????#"" """ # | +----------------------------------------------------+ Best States ------------- Heat Dissipation 56 Energy Generation 31 Energy Capacity 640 Matter Stores 550 Matter Capacity 550 Sight Range 18 Robot Scan Range 15 Terrain Scan Range 20 Terrain Scan Density 10 ECM Strength 1 Resistance: KI 20 Resistance: TH 20 Resistance: EX 20 Resistance: EM 20 Resistance: I 20 Resistance: S 20 Resistance: P 20 Evasion (%) 55 Targeting Accuracy 8 Recoil Reduction 3 Offensive Hacking 20 Item Schematics ----------------- None Robot Schematics ------------------ None Fabricated ------------ Nothing Alien Tech Used ----------------- None Achievements -------------- None Challenges ------------ None Game ------ Seed CompanionCommBasin Manual? 0 Play Time 01:30:37 Cumulative 35.7 hours Start 2025.03.28 @ 06:31:54 End 2025.03.28 @ 12:21:49 Sessions 3 Manual Loads 0 Difficulty Adventurer Special Mode None Game No. 30 Rogue 7 Adventurer 23 Explorer 0 Win Type - Total 0 Types 0/0/0/0/0/0/0/0/0 Lore% 7 Gallery% 27 Achievement% 19 Wizard Run 0 Options --------- Layout 1 ASCII 0 Keyboard 0 Movement Mouse Keybinds 0 Fullscreen 1 Font 24/Smallcaps Map View 50x35 Zoom Use 0% Tactical HUD 1 Map Filters NONE Filters NONE Steam 1 RUN: d1c9ceea-b1d5-4d89-a198-be5125b6158b